bitfinex/quotes_SOLUSD_20241016
["timestamp","ask_amount","ask_price","bid_price","bid_amount"]
[1729097131692,6.4801,154.32,154.27,38.6124]
[1729097132787,6.4797,154.33,154.28,6.4814]
[1729097133791,21.9562,154.37,154.27,15.926]
[1729097134087,6.4791,154.35,154.31,6.4802]
[1729097134497,6.4791,154.35,154.3,6.4808]
[1729097134671,6.4792,154.34,154.3,6.4808]
[1729097135094,6.2052,154.37,154.31,6.4804]
[1729097135299,6.4787,154.36,154.31,6.4804]
[1729097135518,6.4776,154.38,154.31,16.2006]
[1729097135797,6.4774,154.39,154.34,16.1978]
[1729097135983,13.84420661,154.41,154.36,6.4781]
[1729097135984,6.4766,154.4,154.36,6.4781]
[1729097136495,7.48460661,154.41,154.37,6.4777]
[1729097136680,6.4758,154.42,154.37,6.4777]
[1729097137370,6.4758,154.42,154.36,16.1953]
[1729097137371,6.4758,154.42,154.38,6.4774]
[1729097139894,6.4742,154.46,154.41,6.476]
[1729097140396,15.1705,154.49,154.4,16.1911]
[1729097140599,6.4751,154.44,154.4,22.6676]
[1729097143021,6.4763,154.41,154.36,16.1949]
[1729097143313,6.4763,154.41,154.37,6.4778]
[1729097144086,16.1859,154.46,154.37,6.4778]
[1729097144386,6.475,154.44,154.39,6.4767]
[1729097144584,6.475,154.44,154.38,16.1931]
[1729097144786,6.475,154.44,154.4,6.4765]
[1729097145207,6.475,154.44,154.39,6.477]
[1729097146710,6.4757,154.43,154.38,22.6704]
[1729097146918,6.4757,154.43,154.38,16.1931]
[1729097147993,6.4762,154.42,154.38,16.1931]
[1729097148288,6.4754,154.43,154.39,6.477]
[1729097150102,6.477,154.4,154.35,22.6747]
[1729097150311,6.477,154.4,154.35,16.1963]
[1729097150510,6.477,154.4,154.36,6.478]
[1729097153134,6.4774,154.39,154.35,16.1963]
[1729097154397,6.4774,154.39,154.35,22.675]
[1729097155712,6.4774,154.39,154.35,16.1963]
[1729097155926,6.4774,154.39,154.35,22.675]
[1729097157926,6.4782,154.37,154.33,6.4793]
[1729097159808,16.1911,154.41,154.33,6.4793]
[1729097160132,6.4776,154.38,154.33,6.4793]
[1729097160336,23.776884,154.4,154.33,6.4793]
[1729097160631,16.1911,154.41,154.32,16.1994]
[1729097160632,6.478,154.37,154.32,22.6791]
[1729097160831,6.4795,154.34,154.3,6.4808]
[1729097161017,6.4797,154.33,154.29,16.2031]
[1729097161213,6.4807,154.31,154.26,38.5218]
[1729097161427,15.6753,154.35,154.23,6.5597]
[1729097161637,6.4809,154.3,154.23,6.5597]
[1729097161939,6.4807,154.31,154.26,6.4825]
[1729097162118,16.1996,154.33,154.24,0.35461]
[1729097162311,6.4809,154.3,154.25,6.4829]
[1729097162514,6.4815,154.29,154.24,6.4833]
[1729097164140,6.4822,154.27,154.23,22.693]
[1729097164372,6.4825,154.26,154.2,16.2122]
[1729097164525,6.4825,154.26,154.21,6.4844]
[1729097165027,6.4822,154.27,154.22,6.4841]
[1729097165233,6.4817,154.28,154.24,6.4832]
[1729097165646,6.4813,154.29,154.24,6.4832]
[1729097165944,6.4809,154.3,154.25,6.4826]
[1729097166642,6.4805,154.31,154.26,6.4824]
[1729097166816,6.4805,154.31,154.26,5.4824]
[1729097167219,6.4813,154.29,154.25,6.4829]
[1729097167448,6.4809,154.3,154.25,6.4829]
[1729097168066,6.4814,154.29,154.25,6.4829]
[1729097168920,6.481,154.3,154.24,16.2079]
[1729097169120,6.4805,154.31,154.27,6.482]
[1729097169317,22.39732028,154.35,154.25,15.3593]
[1729097169521,6.4795,154.34,154.29,6.4808]
[1729097169743,6.4796,154.33,154.28,16.2036]
[1729097169947,6.4796,154.33,154.28,22.6852]
[1729097170723,6.48,154.32,154.28,22.6852]
[1729097171221,15.6753,154.35,154.25,15.3593]
[1729097171422,6.4806,154.31,154.27,6.4817]
[1729097173429,6.4801,154.32,154.28,6.4816]
[1729097173632,6.4797,154.33,154.28,6.4816]
[1729097173830,6.4795,154.34,154.3,6.4808]
[1729097174027,6.4791,154.35,154.3,22.6828]
[1729097174329,16.5726,154.39,154.32,6.48]
[1729097174538,6.4782,154.37,154.33,6.4796]
[1729097174730,16.5726,154.39,154.32,6.4799]
[1729097174930,4.71597491,154.38,154.28,23.776884]
[1729097175140,6.4779,154.37,154.33,6.4792]
[1729097175435,6.4788,154.35,154.3,6.4808]
[1729097176440,6.4788,154.35,154.29,16.2025]
[1729097176641,6.4788,154.35,154.31,6.4804]
[1729097176841,6.4782,154.37,154.31,16.2006]
[1729097177441,6.4788,154.35,154.31,22.681]
[1729097178458,6.4788,154.35,154.31,6.4803]
[1729097179170,6.4788,154.35,154.27,32.4099]
[1729097179171,6.4788,154.35,154.3,22.6825]
[1729097179658,6.4788,154.35,154.3,16.2018]
[1729097179831,6.4788,154.35,154.31,6.4804]
[1729097180645,6.4779,154.37,154.33,6.4796]
[1729097180856,6.4784,154.36,154.32,6.4799]
[1729097181352,6.478,154.37,154.33,6.4793]
[1729097183960,6.4775,154.38,154.34,6.4791]
[1729097184540,6.72151379,154.42,154.31,65.58532651]
[1729097184737,6.4757,154.43,154.33,41.88861051]
[1729097185043,6.4742,154.46,154.41,6.4761]
[1729097185244,16.1819,154.5,154.42,6.4757]
[1729097185245,6.4738,154.47,154.42,6.4757]
[1729097185450,6.4738,154.47,154.43,6.4753]
[1729097185651,6.4733,154.48,154.43,6.4753]
[1729097186339,6.4733,154.48,154.44,6.4749]
[1729097186533,6.4726,154.5,154.45,16.1861]
[1729097186835,6.4721,154.51,154.46,6.474]
[1729097187261,15.2793,154.55,154.45,16.1861]
[1729097187262,6.4732,154.49,154.45,16.1861]
[1729097187458,16.1777,154.54,154.45,16.1861]
[1729097188041,6.4637,154.56,154.48,16.1831]
[1729097188274,31.4519,154.59,154.5,16.1802]
[1729097188275,15.2793,154.59,154.5,16.1802]
[1729097188567,6.4695,154.58,154.52,6.4714]
[1729097189241,6.4696,154.57,154.5,22.6523]
[1729097189443,6.4699,154.56,154.5,22.6523]
[1729097190345,23.776884,154.59,154.47,6.0952]
[1729097190346,6.4708,154.54,154.48,6.473]
[1729097190743,6.4713,154.53,154.46,16.1844]
[1729097190948,6.4713,154.53,154.46,22.6581]
[1729097191149,6.4713,154.53,154.47,6.4735]
[1729097192240,6.472,154.52,154.46,16.1844]
[1729097192457,6.4712,154.53,154.46,22.6584]
[1729097192767,6.4712,154.53,154.46,16.1844]
[1729097192942,16.1737,154.58,154.46,16.1844]
[1729097193267,6.4714,154.53,154.46,16.1844]
[1729097194275,23.776884,154.57,154.46,16.1844]
[1729097194460,6.4717,154.52,154.46,22.6585]
[1729097194772,6.4717,154.52,154.47,6.4734]
[1729097194974,6.4712,154.53,154.47,6.4734]
[1729097196047,6.4637,154.6,154.46,0.1]
[1729097196242,6.4637,154.6,154.48,28.96290605]
[1729097196481,6.2559,154.64,154.52,15.9478]
[1729097196679,6.4684,154.6,154.56,16.1746]
[1729097197145,6.4684,154.6,154.53,16.1777]
[1729097197344,6.4687,154.59,154.54,6.4707]
[1729097199470,6.4687,154.59,154.55,6.4703]
[1729097199679,6.4683,154.6,154.55,6.4703]
[1729097201252,6.2559,154.64,154.55,6.4703]
[1729097201465,6.4687,154.59,154.55,6.4703]
[1729097202062,6.4694,154.58,154.53,22.6488]
[1729097202468,6.4693,154.58,154.54,6.4705]
[1729097202654,6.4693,154.58,154.53,22.6488]
[1729097202854,6.4688,154.59,154.55,6.4701]
[1729097203682,6.4693,154.58,154.53,22.6486]
[1729097205951,6.4699,154.57,154.53,16.1777]
[1729097206173,6.4706,154.55,154.52,15.9478]
[1729097206377,16.1712,154.6,154.5,22.653]
[1729097206378,6.4709,154.54,154.5,22.653]
[1729097206558,16.1712,154.6,154.5,22.653]
[1729097206763,6.4709,154.54,154.5,22.653]
[1729097206978,32.3354,154.63,154.5,16.1806]
[1729097206979,16.1732,154.58,154.5,16.1806]
[1729097207655,6.4709,154.54,154.5,16.1806]
[1729097208683,6.4709,154.54,154.5,22.653]
[1729097209177,6.4709,154.54,154.48,15.1256]
[1729097209178,6.4717,154.52,154.48,21.5987]
[1729097209600,6.4723,154.51,154.48,15.1256]
[1729097210064,6.4713,154.53,154.48,15.1256]
[1729097210579,6.4713,154.53,154.48,21.5988]
[1729097210772,6.4716,154.52,154.48,21.5988]
[1729097212673,6.4712,154.53,154.49,6.4728]
[1729097212879,16.1725,154.59,154.49,16.1819]
[1729097213094,6.4705,154.55,154.51,6.4717]
[1729097214666,1.82946472,154.65,154.51,6.4717]
[1729097214667,16.1693,154.62,154.52,16.1789]
[1729097214867,6.4694,154.58,154.54,6.4705]
[1729097215288,16.6486,154.64,154.53,18.10619489]
[1729097215464,6.4687,154.59,154.55,22.6458]
[1729097216005,6.4696,154.57,154.53,6.4711]
[1729097216365,6.4702,154.56,154.52,16.1786]
[1729097216969,16.1724,154.59,154.49,16.1819]
[1729097217181,6.4709,154.54,154.49,16.1819]
[1729097218385,6.4709,154.54,154.5,6.4723]
[1729097219586,6.4704,154.55,154.51,6.4717]
[1729097220178,16.1724,154.59,154.49,16.1819]
[1729097220386,6.4713,154.53,154.49,22.6547]
[1729097220885,6.4709,154.54,154.5,6.4724]
[1729097222018,16.1742,154.57,154.48,15.1256]
[1729097222176,6.4721,154.51,154.48,15.1256]
[1729097222503,16.1772,154.54,154.46,16.1847]
[1729097222673,7.79937231,154.61,154.5,16.1808]
[1729097222874,7.79937231,154.61,154.43,6.2525]
[1729097222875,20.86214144,154.61,154.54,6.4707]
[1729097223196,6.4687,154.59,154.54,6.4707]
[1729097223903,6.4687,154.59,154.55,6.4702]
[1729097224195,16.1671,154.64,154.56,6.4699]
[1729097224400,6.4683,154.6,154.56,6.4699]
[1729097227097,6.4683,154.6,154.54,31.3498]
[1729097227279,6.4683,154.6,154.55,6.4703]
[1729097228140,6.4679,154.61,154.56,6.4695]
[1729097228775,6.4683,154.6,154.56,6.4695]
[1729097229986,6.4673,154.63,154.58,6.4687]
[1729097230293,6.4663,154.65,154.61,6.4677]
[1729097230486,65.40242088,154.7,154.55,43.876884]
[1729097230487,6.4653,154.68,154.57,35.47656184]
[1729097230673,4.74170378,154.67,154.64,6.4665]
[1729097231001,6.465,154.68,154.64,6.4665]
[1729097231204,6.5434,154.71,154.64,6.4665]
[1729097231503,6.4646,154.69,154.65,6.4661]
[1729097233013,6.4632,154.73,154.69,6.4644]
[1729097233214,6.4632,154.73,154.66,16.1637]
[1729097233423,6.4632,154.73,154.68,6.4648]
[1729097234218,6.4633,154.72,154.68,6.4648]
[1729097234527,7.0912713,154.74,154.69,6.4641]
[1729097237017,6.4636,154.72,154.68,16.1614]
[1729097237227,0.6285713,154.74,154.66,6.4656]
[1729097237228,6.4638,154.71,154.66,6.4656]
[1729097237797,6.4638,154.71,154.67,6.4652]
[1729097238003,6.4633,154.72,154.67,6.4652]
[1729097238609,6.4633,154.72,154.68,6.4647]
[1729097239020,0.6285713,154.74,154.66,23.776884]
[1729097239331,7.0910713,154.74,154.69,6.4643]
[1729097240122,0.6285713,154.74,154.67,16.1628]
[1729097240292,6.4641,154.71,154.67,16.1628]
[1729097240725,6.4634,154.72,154.68,6.4648]
[1729097240932,0.6285713,154.74,154.7,6.464]
[1729097241434,0.6285713,154.74,154.72,6.4631]
[1729097241726,0.6285713,154.74,154.69,16.1604]
[1729097241727,7.0910713,154.74,154.7,6.464]
[1729097244913,6.4636,154.72,154.67,6.465]
[1729097245433,0.6285713,154.74,154.67,6.465]
[1729097245605,6.4637,154.71,154.67,6.465]
[1729097246503,6.4634,154.72,154.67,6.465]
[1729097248131,6.4641,154.7,154.66,22.6294]
[1729097248338,16.7850713,154.74,154.66,16.1638]
[1729097248512,16.7850713,154.74,154.62,48.7995]
[1729097248513,6.4661,154.66,154.62,39.0974]
[1729097248904,6.4654,154.67,154.62,39.0974]
[1729097249704,6.4658,154.66,154.62,39.0974]
[1729097249932,16.2907,154.71,154.59,16.1711]
[1729097249933,6.4671,154.63,154.59,16.1711]
[1729097250127,6.4666,154.64,154.59,22.6394]
[1729097250526,6.4666,154.64,154.6,6.4682]
[1729097251306,16.2907,154.71,154.59,16.1711]
[1729097251513,6.4654,154.67,154.61,16.1688]
[1729097251807,6.4658,154.66,154.62,6.4673]
[1729097252021,6.4654,154.67,154.62,6.4673]
[1729097253611,6.4659,154.66,154.61,22.6366]
[1729097253812,6.4659,154.66,154.62,6.4674]
[1729097254531,6.4655,154.67,154.62,6.4674]
[1729097255610,6.2927,154.72,154.6,43.776884]
[1729097255923,6.4646,154.69,154.65,6.4661]
[1729097256628,6.4637,154.71,154.66,6.4654]
[1729097256835,6.4637,154.71,154.67,6.4651]
[1729097257909,16.7850713,154.74,154.67,6.4651]
[1729097257910,6.463,154.73,154.67,16.1629]
[1729097258724,0.6285713,154.74,154.67,18.05706374]
[1729097258910,7.0910713,154.74,154.7,6.4638]
[1729097259111,7.0910713,154.74,154.69,16.1605]
[1729097259327,7.0910713,154.74,154.69,22.6249]
[1729097259610,7.0910713,154.74,154.7,6.4638]
[1729097260434,0.6285713,154.74,154.71,6.4634]
[1729097263913,0.6285713,154.74,154.72,6.4632]
[1729097264234,0.6285713,154.74,154.71,22.6222]
[1729097264914,0.6285713,154.74,154.72,6.4629]
[1729097265118,0.6285713,154.74,154.73,6.4628]
[1729097266334,0.6285713,154.74,154.71,16.1586]
[1729097266335,0.6285713,154.74,154.72,6.4631]
[1729097267136,0.6285713,154.74,154.71,16.1586]
[1729097267343,0.6285713,154.74,154.72,6.4632]
[1729097267723,0.6285713,154.74,154.73,6.4628]
[1729097272335,0.6285713,154.74,154.73,68.29674774]
[1729097273316,0.6285713,154.74,154.73,48.29674774]
[1729097273516,0.6285713,154.74,154.73,68.29674774]
[1729097275730,0.6285713,154.74,154.73,48.29674774]
[1729097276244,0.6285713,154.74,154.73,68.29674774]
[1729097276843,0.6285713,154.74,154.73,50.239684]
[1729097280554,0.6285713,154.74,154.73,26.4628]
[1729097280759,0.6285713,154.74,154.71,16.1586]
[1729097280957,0.6285713,154.74,154.68,22.6263]
[1729097281165,6.4633,154.72,154.68,22.6263]
[1729097281539,6.4629,154.73,154.69,6.4645]
[1729097281747,0.6285713,154.74,154.72,6.4632]
[1729097282258,0.6285713,154.74,154.69,18.05706374]
[1729097282447,0.6285713,154.74,154.73,6.4628]
[1729097286079,0.6285713,154.74,154.73,26.4628]
[1729097287372,0.6285713,154.74,154.73,6.4628]
[1729097293679,0.6285713,154.74,154.73,50.239684]
[1729097296083,0.6285713,154.74,154.73,26.4628]
[1729097296791,0.6285713,154.74,154.73,6.4628]
[1729097296952,0.6285713,154.74,154.69,24.24556374]
[1729097296953,0.6285713,154.74,154.69,16.1607]
[1729097297157,0.6285713,154.74,154.7,6.4638]
[1729097297356,0.6285713,154.74,154.66,16.1638]
[1729097297664,6.4634,154.72,154.66,16.1638]
[1729097297869,6.4634,154.72,154.68,6.4646]
[1729097298186,0.6285713,154.74,154.67,18.05706374]
[1729097298479,0.6285713,154.74,154.69,18.05706374]
[1729097298784,0.6285713,154.74,154.73,6.4628]
[1729097302876,0.6285713,154.74,154.7,32.3205]
[1729097302877,5.40466864,154.74,154.7,6.464]
[1729097303068,5.40466864,154.74,154.69,16.1607]
[1729097303069,4.77516701,154.73,154.69,16.1607]
[1729097303270,11.23856701,154.72,154.68,6.4647]
[1729097303475,4.77516701,154.71,154.68,6.4647]
[1729097304562,6.463,154.73,154.68,6.4647]
[1729097304786,12.41455478,154.72,154.68,6.4647]
[1729097305287,4.77482876,154.71,154.69,6.4642]
[1729097305468,6.463,154.73,154.69,6.4642]
[1729097305661,4.77526532,154.72,154.69,6.4642]
[1729097305887,6.463,154.73,154.69,6.4642]
[1729097306092,4.77538061,154.72,154.69,6.4642]
[1729097306388,6.463,154.73,154.69,6.4642]
[1729097306589,4.77555211,154.72,154.69,6.4642]
[1729097306790,6.463,154.73,154.69,6.4642]
[1729097306992,11.23892016,154.72,154.68,22.6264]
[1729097307171,22.6383713,154.74,154.64,16.1308]
[1729097307371,6.464,154.71,154.67,6.465]
[1729097308092,22.6383713,154.74,154.65,16.1648]
[1729097308279,52.35187586,154.73,154.62,48.5041]
[1729097308484,12.41759186,154.72,154.62,48.5041]
[1729097308674,12.41759186,154.71,154.62,48.5041]
[1729097308867,12.41759186,154.7,154.62,48.5041]
[1729097309070,4.77599687,154.69,154.62,48.5041]
[1729097309387,6.4646,154.69,154.65,6.4661]
[1729097311497,16.1574,154.73,154.65,6.4661]
[1729097311666,11.23598424,154.72,154.68,6.4649]
[1729097311863,6.4633,154.72,154.68,6.4649]
[1729097312564,6.4638,154.71,154.67,6.4652]
[1729097313387,6.4641,154.7,154.66,22.6296]
[1729097313685,38.7947713,154.74,154.66,22.6296]
[1729097313686,6.4638,154.71,154.67,6.4652]
[1729097321107,6.4633,154.72,154.68,6.4648]
[1729097323704,6.4638,154.71,154.67,6.4653]
[1729097326403,6.4638,154.71,154.68,6.4649]
[1729097327887,0.6285713,154.74,154.69,6.4645]
[1729097328087,4.77193359,154.73,154.69,6.4645]
[1729097328296,6.4631,154.73,154.69,6.4645]
[1729097328889,4.77284562,154.72,154.69,6.4645]
[1729097329074,6.4632,154.72,154.69,6.4645]
[1729097331286,6.4632,154.72,154.68,22.6269]
[1729097335386,0.6285713,154.74,154.65,16.1649]
[1729097335719,6.4638,154.71,154.67,6.4653]
[1729097337327,0.6285713,154.74,154.65,11.56202965]
[1729097337615,12.42033918,154.73,154.71,6.4633]
[1729097339200,4.77705353,154.72,154.71,6.4633]
[1729097339407,4.77705353,154.73,154.7,6.4638]
[1729097339713,4.77705353,154.72,154.7,6.4638]
[1729097340017,7.0910713,154.74,154.7,6.4638]
[1729097340216,12.42501166,154.73,154.7,6.4638]
[1729097340386,6.4637,154.72,154.67,6.465]
[1729097340583,4.77855726,154.71,154.67,6.465]
[1729097340787,6.4637,154.72,154.67,6.465]
[1729097341013,11.24148883,154.71,154.67,6.465]
[1729097341305,0.6285713,154.74,154.64,31.56202965]
[1729097341306,6.4652,154.68,154.64,6.4664]
[1729097341507,23.776884,154.71,154.63,16.1667]
[1729097341710,45.48520725,154.72,154.63,16.1667]
[1729097341711,12.41732877,154.7,154.63,16.1667]
[1729097341905,12.41732877,154.69,154.63,16.1667]
[1729097342217,4.77589568,154.68,154.63,16.1667]
[1729097342384,45.48520725,154.72,154.63,16.1667]
[1729097342385,6.4648,154.69,154.65,6.466]
[1729097342591,4.77550128,154.68,154.65,6.466]
[1729097342891,6.4648,154.69,154.65,6.466]
[1729097343206,4.77317332,154.68,154.65,6.466]
[1729097343508,7.96170725,154.72,154.64,18.07019851]
[1729097343707,4.77236887,154.71,154.69,6.4643]
[1729097343915,4.77253328,154.7,154.67,16.1631]
[1729097344094,6.4631,154.73,154.68,6.4648]
[1729097344296,12.40873504,154.72,154.68,6.4648]
[1729097344501,4.7725904,154.71,154.7,6.464]
[1729097344705,0.6285713,154.74,154.7,6.4641]
[1729097345025,12.40999742,154.73,154.71,6.4635]
[1729097345200,4.77255921,154.72,154.71,22.6224]
[1729097345516,0.6285713,154.74,154.73,6.4628]
[1729097345815,5.40178093,154.74,154.73,6.4628]
[1729097346226,0.6285713,154.74,154.73,6.4628]
[1729097346896,0.6285713,154.74,154.71,22.6223]
[1729097347909,4.77311272,154.73,154.7,6.464]
[1729097348115,4.77311272,154.73,154.68,16.1618]
[1729097348116,6.4635,154.72,154.68,16.1618]
[1729097348323,4.77281396,154.71,154.68,16.1618]
[1729097348629,6.4635,154.72,154.68,16.1618]
[1729097348804,4.77267801,154.71,154.68,16.1618]
[1729097348998,6.4635,154.72,154.68,22.6266]
[1729097349203,4.77291566,154.71,154.68,22.6266]
[1729097349418,6.4629,154.73,154.68,22.6266]
[1729097349621,12.4096179,154.72,154.68,22.6266]
[1729097349832,4.77292996,154.71,154.68,22.6266]
[1729097350016,6.4633,154.72,154.68,22.6266]
[1729097350210,4.77279672,154.71,154.68,22.6266]
[1729097350409,6.4633,154.72,154.68,22.6266]
[1729097350702,4.77291509,154.71,154.68,22.6266]
[1729097350908,6.4633,154.72,154.68,22.6266]
[1729097351115,4.7728243,154.71,154.68,22.6266]
[1729097351318,0.6285713,154.74,154.69,6.4641]
[1729097351510,12.40939788,154.73,154.69,6.4641]
[1729097351714,4.77284534,154.72,154.69,6.4641]
[1729097351918,4.77284534,154.72,154.65,32.3297]
[1729097351919,4.77284534,154.72,154.71,6.4637]
[1729097352232,0.6285713,154.74,154.72,6.4632]
[1729097352409,4.77303645,154.73,154.72,6.4632]
[1729097352922,0.6285713,154.74,154.73,6.4628]
[1729097354017,0.6285713,154.74,154.73,26.4628]
[1729097358433,0.1285713,154.74,154.73,26.4628]
[1729097358608,0.1285713,154.74,154.73,6.4628]
[1729097364336,0.1285713,154.74,154.69,16.1612]
[1729097364337,6.4629,154.73,154.69,16.1612]
[1729097364644,0.1285713,154.74,154.69,16.1612]
[1729097364846,6.4629,154.73,154.69,22.6256]
[1729097368448,6.5912713,154.74,154.7,6.4641]
[1729097368644,0.1285713,154.74,154.69,16.1612]
[1729097368847,0.1285713,154.74,154.66,33.40219851]
[1729097369149,0.1285713,154.74,154.72,6.4632]
[1729097371025,0.1285713,154.74,154.73,6.4628]
[1729097372147,0.1285713,154.74,154.73,26.4628]
[1729097373350,0.1285713,154.74,154.73,6.4628]
[1729097376053,0.1285713,154.74,154.72,6.463]
[1729097376248,0.1285713,154.74,154.71,16.1588]
[1729097376433,0.1285713,154.74,154.73,6.4628]
[1729097382141,0.1285713,154.74,154.73,30.239684]
[1729097382542,0.1285713,154.74,154.73,50.239684]
[1729097388345,0.1285713,154.74,154.73,26.4628]
[1729097395451,0.1285713,154.74,154.73,6.4628]
[1729097400402,0.1285713,154.74,154.73,38.01333069]
[1729097400558,0.1285713,154.74,154.73,61.79021469]
[1729097400764,0.1285713,154.74,154.73,50.239684]
[1729097400994,0.1285713,154.74,154.73,61.79021469]
[1729097402890,14.42060163,154.83,154.74,0.1]
[1729097402891,7.96180163,154.83,154.74,0.1]
[1729097403102,16.7695713,154.89,154.74,0.1]
[1729097403103,36.10130163,154.87,154.82,6.4588]
[1729097403315,12.42390027,154.86,154.8,11.55053069]
[1729097403585,4.77842318,154.85,154.83,16.146]
[1729097403759,7.0847713,154.89,154.85,6.4578]
[1729097403962,12.42155013,154.88,154.85,6.4578]
[1729097404287,4.77751928,154.87,154.84,6.4582]
[1729097404599,7.0847713,154.89,154.85,6.4577]
[1729097404811,12.41170185,154.88,154.84,6.4582]
[1729097405105,7.0847713,154.89,154.84,6.4582]
[1729097405106,4.77373148,154.87,154.84,6.4582]
[1729097405301,7.0847713,154.89,154.84,6.4582]
[1729097405477,4.77059651,154.88,154.85,6.4577]
[1729097405681,7.0847713,154.89,154.85,6.4577]
[1729097405899,4.77077212,154.88,154.85,6.4577]
[1729097406100,7.0847713,154.89,154.85,6.4577]
[1729097406396,4.7706711,154.88,154.85,6.4577]
[1729097406606,0.6285713,154.89,154.85,6.4577]
[1729097407200,0.6285713,154.89,154.86,6.4573]
[1729097407407,0.6285713,154.89,154.85,6.4577]
[1729097409078,0.6285713,154.89,154.81,18.02544308]
[1729097409283,0.6285713,154.89,154.86,6.4571]
[1729097409910,0.6285713,154.89,154.87,6.4567]
[1729097410081,0.6285713,154.89,154.88,6.4566]
[1729097410484,0.6285713,154.89,154.85,16.1442]
[1729097410685,0.6285713,154.89,154.87,6.4569]
[1729097411311,0.6285713,154.89,154.88,22.3359]
[1729097411813,0.6285713,154.89,154.88,66.112784]
[1729097412612,12.6908,154.99,154.88,59.856184]
[1729097412813,4.7552326,154.98,154.94,6.4537]
[1729097413123,12.6908,154.99,154.94,6.4537]
[1729097413295,6.2388,154.99,154.95,6.4536]
[1729097414005,6.2388,154.99,154.96,6.4532]
[1729097414203,6.2388,154.99,154.93,16.1355]
[1729097414409,12.6909,154.99,154.93,16.1355]
[1729097414900,12.6908,154.99,154.94,6.4541]
[1729097415205,6.452,154.99,154.94,6.4541]
[1729097415521,31.262,155.01,154.9,16.1389]
[1729097415694,6.4529,154.97,154.92,6.4547]
[1729097415897,31.262,155.01,154.91,20.0]
[1729097416117,6.4523,154.99,154.94,6.4539]
[1729097416422,31.262,155.01,154.92,16.1365]
[1729097416723,16.1307,154.99,154.89,16.1402]
[1729097417032,6.4533,154.96,154.91,6.455]
[1729097417228,6.4533,154.96,154.89,16.1402]
[1729097417398,6.4533,154.96,154.92,6.4549]
[1729097418195,15.1335,155.01,154.92,6.4549]
[1729097418196,6.4528,154.97,154.92,6.4549]
[1729097418600,16.1295,155.0,154.91,22.5929]
[1729097419339,6.4534,154.96,154.91,22.5929]
[1729097420014,15.1335,155.01,154.88,22.3177]
[1729097420224,15.1335,155.01,154.88,38.477]
[1729097420225,16.1317,154.98,154.88,38.477]
[1729097420428,6.4546,154.93,154.89,6.4561]
[1729097420803,6.455,154.92,154.88,38.477]
[1729097421121,6.455,154.92,154.88,32.0205]
[1729097421323,15.5007,154.95,154.85,16.1441]
[1729097421528,6.4563,154.89,154.85,22.6019]
[1729097421692,16.1361,154.94,154.85,22.6019]
[1729097421900,6.4557,154.91,154.86,6.4572]
[1729097422824,16.1361,154.94,154.85,22.6019]
[1729097422825,6.4562,154.89,154.85,22.6019]
[1729097423030,6.4559,154.9,154.86,6.4573]
[1729097423723,6.4559,154.9,154.85,16.1441]
[1729097423908,6.4564,154.89,154.85,16.1441]
[1729097424408,6.4564,154.89,154.85,22.6018]
[1729097424998,6.4558,154.9,154.85,22.6018]
[1729097426137,6.4573,154.87,154.82,16.1476]
[1729097426297,6.4573,154.87,154.83,6.4586]
[1729097427937,6.4564,154.89,154.85,6.4577]
[1729097429638,47.7702,154.95,154.84,16.1453]
[1729097429639,6.4554,154.91,154.84,16.1453]
[1729097429839,15.5007,154.95,154.84,16.1453]
[1729097429840,6.4546,154.93,154.88,6.4563]
[1729097430014,6.4544,154.94,154.89,6.4558]
[1729097430331,6.4542,154.94,154.9,22.5945]
[1729097430540,6.5363,154.96,154.9,22.5945]
[1729097430709,6.4533,154.96,154.92,6.4548]
[1729097431107,31.5445,154.99,154.92,6.4548]